bitfinex/quotes_ETHUSD_20220226
["timestamp","ask_amount","ask_price","bid_price","bid_amount"]
[1645867663545,0.09582379,2754.9,2754.8,0.0307512]
[1645867663951,0.09582379,2754.9,2754.5,0.00293018]
[1645867663952,0.3636,2754.7,2754.5,0.00293018]
[1645867664157,4.3866,2754.6,2754.1,0.25]
[1645867664354,0.523,2754.5,2754.1,0.25]
[1645867664552,1.3,2754.7,2753.3,0.00623985]
[1645867664553,1.0,2754.7,2753.3,0.00623985]
[1645867664753,1.0,2754.8,2754.0,1.16460259]
[1645867664955,1.09582379,2754.9,2754.0,1.16460259]
[1645867665253,0.09582379,2754.9,2754.0,1.16460259]
[1645867665451,0.09582379,2754.9,2754.1,12.2967]
[1645867665851,0.09582379,2754.9,2754.1,12.5967]
[1645867666055,0.09582379,2754.9,2754.6,1.2836145]
[1645867666900,0.45942379,2754.9,2754.2,0.00135925]
[1645867667102,0.09582379,2754.9,2754.2,6.0699]
[1645867667506,0.10037565,2754.9,2754.2,6.07438995]
[1645867667910,0.10037565,2754.9,2754.8,1.36484271]
[1645867668307,0.09582379,2754.9,2754.8,1.36484271]
[1645867668707,0.09582379,2754.9,2754.8,1.31484271]
[1645867670939,0.09582379,2754.9,2754.4,0.00291687]
[1645867671140,0.09582379,2754.9,2754.3,0.1451]
[1645867671945,0.09582379,2754.9,2754.8,1.33908352]
[1645867672945,0.09582379,2754.9,2754.4,0.00291687]
[1645867673147,0.09582379,2754.9,2754.3,0.1451]
[1645867674605,0.09582379,2754.9,2754.8,1.13789311]
[1645867675204,0.09582379,2754.9,2754.5,0.1451]
[1645867675404,0.09582379,2754.9,2754.4,0.00291687]
[1645867675405,0.45942379,2754.9,2754.4,0.00291687]
[1645867675607,0.45942379,2754.9,2754.2,6.07438995]
[1645867675608,0.45942379,2754.9,2754.2,6.07281687]
[1645867675811,0.3636,2754.7,2754.2,6.07281687]
[1645867676007,0.3636,2754.7,2754.2,6.07438995]
[1645867676811,0.3636,2754.7,2754.2,6.0699]
[1645867677007,0.00320523,2754.6,2754.2,6.0699]
[1645867677954,0.3636,2754.7,2754.2,6.0699]
[1645867678361,0.00454889,2754.5,2754.2,6.0743795]
[1645867678556,0.00454889,2754.5,2754.2,0.0044795]
[1645867678557,0.523,2754.4,2754.2,0.0044795]
[1645867678755,0.3636,2754.3,2754.2,0.0044795]
[1645867678954,1.1866,2754.3,2754.2,0.0044795]
[1645867679154,13.2366,2754.3,2754.2,0.0044795]
[1645867679355,0.3636,2754.2,2753.6,0.00291687]
[1645867679554,0.3636,2754.0,2753.5,5.8986]
[1645867679753,0.8866,2754.0,2753.5,5.8986]
[1645867680957,0.8866,2754.0,2753.5,6.92783893]
[1645867681228,1.0,2754.3,2753.5,6.92783893]
[1645867681407,0.0032045,2754.5,2753.5,6.92783893]
[1645867681606,0.0032045,2754.5,2753.6,0.00291687]
[1645867681804,0.6664,2754.8,2753.6,0.00291687]
[1645867682004,0.00320467,2754.5,2753.6,0.00291687]
[1645867682606,0.3636,2754.3,2753.6,0.00291687]
[1645867683007,0.3636,2754.3,2753.5,5.8986]
[1645867683204,0.3636,2754.3,2753.9,0.00446945]
[1645867684107,0.3636,2754.3,2753.6,0.00291687]
[1645867684308,0.3636,2754.4,2754.0,0.00446937]
[1645867684508,3.12106665,2754.5,2754.0,0.00446937]
[1645867684509,0.3636,2754.2,2754.0,0.00446937]
[1645867685345,0.3636,2754.2,2753.6,0.04588917]
[1645867685549,0.3636,2754.2,2754.0,0.00446937]
[1645867685948,0.523,2754.3,2754.0,0.00446937]
[1645867686553,0.523,2754.3,2753.6,0.04588917]
[1645867686750,0.523,2754.3,2753.7,0.60854487]
[1645867686949,0.523,2754.3,2754.0,0.00446929]
[1645867687351,0.0045455,2754.5,2754.0,0.00446929]
[1645867687753,0.09582379,2754.9,2753.8,0.00291687]
[1645867687955,0.09582379,2754.9,2753.8,0.60847022]
[1645867688152,0.0045455,2754.5,2754.1,1.26583622]
[1645867688798,0.3636,2754.8,2754.1,1.26583622]
[1645867689004,0.3636,2754.8,2753.8,0.00291687]
[1645867689198,0.00454568,2754.5,2754.2,0.00446905]
[1645867690100,0.3636,2754.6,2753.8,0.00291687]
[1645867690303,0.00454574,2754.5,2754.2,0.00446905]
[1645867690602,0.00454574,2754.5,2754.3,0.61041486]
[1645867690802,0.00454574,2754.5,2754.2,0.00446905]
[1645867691101,0.00454574,2754.5,2754.3,0.61219535]
[1645867691303,1.17241198,2754.9,2754.5,0.00365281]
[1645867691304,0.09582379,2754.9,2754.5,0.00365281]
[1645867692002,0.45942379,2754.9,2754.5,0.00365281]
[1645867692201,0.09582379,2754.9,2754.6,1.3852758]
[1645867692452,0.09582379,2754.9,2754.7,0.61219535]
[1645867692852,0.00446032,2754.8,2754.7,0.61219535]
[1645867693253,0.00304704,2754.8,2754.7,0.61219535]
[1645867693653,0.09582379,2754.9,2754.7,0.61219535]
[1645867695560,0.09582379,2754.9,2754.7,1.88489535]
[1645867695561,2.379e-05,2754.9,2754.7,1.88489535]
[1645867695763,2.379e-05,2754.9,2754.8,4.47871222]
[1645867695961,1.43075,2756.2,2754.9,7.0]
[1645867695962,0.523,2756.2,2754.9,7.0]
[1645867696212,4.26311438,2756.6,2755.0,4.92912936]
[1645867696213,0.89316732,2756.1,2755.0,4.92912936]
[1645867696401,0.89316732,2756.4,2755.3,0.3636]
[1645867696602,0.1434,2757.0,2755.3,0.3636]
[1645867696603,0.89316732,2756.3,2755.4,4.62381222]
[1645867696800,0.80351983,2757.0,2755.5,0.97579535]
[1645867696801,0.66011983,2757.0,2755.5,0.97579535]
[1645867697000,0.89309241,2756.9,2755.6,0.75729535]
[1645867697199,0.89309241,2756.8,2755.7,0.61219535]
[1645867697402,0.3636,2756.6,2755.7,0.91219535]
[1645867697600,4.39309241,2756.7,2755.4,10.00061929]
[1645867697601,0.00436943,2756.4,2755.4,9.12491687]
[1645867697807,0.89309241,2756.3,2755.9,1.36299482]
[1645867698304,1.25669241,2756.3,2755.4,8.97981687]
[1645867698505,1.25669241,2756.3,2755.5,0.61334426]
[1645867698506,0.89309241,2756.2,2755.5,0.61334426]
[1645867698808,0.89309241,2756.2,2755.4,8.97981687]
[1645867698809,0.3636,2756.1,2755.4,8.97981687]
[1645867699005,1.25669241,2756.0,2755.4,8.97981687]
[1645867699207,0.89309241,2755.9,2755.4,8.97981687]
[1645867699405,0.89309241,2755.9,2755.6,1.15383722]
[1645867699612,0.89309241,2755.9,2755.4,6.01351687]
[1645867700046,0.00436968,2755.8,2755.4,6.01351687]
[1645867700246,0.00436968,2755.8,2755.5,0.61333289]
[1645867700444,0.00436968,2755.8,2755.4,6.0106]
[1645867700847,0.3636,2756.0,2755.7,1.21093626]
[1645867701045,0.8925863,2755.9,2755.7,1.21093626]
[1645867701449,1.0,2756.5,2755.8,0.6133294]
[1645867701652,0.89288444,2756.4,2755.8,0.6133294]
[1645867702051,0.523,2756.9,2755.8,0.6133294]
[1645867702251,0.89284065,2756.8,2755.8,0.6133294]
[1645867702451,0.00428439,2756.2,2755.8,0.6133294]
[1645867703252,3.338024,2756.9,2755.8,0.6133294]
[1645867703455,0.89224754,2756.8,2756.5,1.03718404]
[1645867703713,0.89224754,2756.8,2755.9,16.2023]
[1645867703714,0.00428443,2756.1,2755.9,16.2023]
[1645867703904,0.00428443,2756.1,2755.9,10.1472]
[1645867704104,0.00428443,2756.1,2756.0,0.61273342]
[1645867704305,0.00428443,2756.1,2755.9,10.1472]
[1645867704609,1.81498,2757.0,2756.0,0.91273023]
[1645867704610,1.0,2757.0,2756.0,0.91273023]
[1645867704806,0.00430217,2756.2,2756.1,0.61209098]
[1645867705008,0.00430217,2756.2,2756.1,0.97569098]
[1645867705009,2.17e-06,2756.2,2756.1,0.97569098]
[1645867705806,0.8866,2757.7,2756.1,0.97569098]
[1645867706005,0.8866,2757.7,2756.2,0.97569098]
[1645867706006,1.25600798,2757.6,2756.2,0.97569098]
[1645867706206,1.25600798,2757.6,2756.3,6.71069098]
[1645867706207,0.89240798,2757.5,2756.3,6.71069098]
[1645867706405,0.89240798,2757.5,2756.4,0.61209098]
[1645867706806,0.89240798,2757.5,2756.4,0.3]
[1645867707006,0.89240798,2757.5,2757.1,1.30425676]
[1645867707846,0.89240798,2757.4,2757.1,1.30425676]
[1645867708046,2.8144154,2757.8,2757.1,1.30425676]
[1645867708047,1.0,2757.8,2757.1,1.30425676]
[1645867708247,2.99724983,2758.4,2757.1,1.30425676]
[1645867708248,0.89132823,2757.7,2757.1,1.30425676]
[1645867708444,3.99724983,2758.4,2757.1,1.30425676]
[1645867708445,0.00454435,2757.4,2757.1,1.30425676]
[1645867709250,0.00454435,2757.4,2757.0,0.3]
[1645867709452,0.3636,2758.0,2757.0,0.3]
[1645867709653,0.00454437,2757.4,2756.6,4.8865]
[1645867709853,0.00454437,2757.4,2756.6,0.3]
[1645867710053,0.00454437,2757.4,2756.5,6.6353]
[1645867710450,1.94745563,2758.1,2756.5,6.6353]
[1645867710451,2.85456563,2758.1,2756.5,6.6353]
[1645867710652,0.89075139,2758.0,2757.2,1.10090997]
[1645867710853,0.89075139,2758.0,2756.5,5.3353]
[1645867710854,11.4136,2757.9,2756.5,5.3353]
[1645867711051,11.4136,2757.9,2756.4,1.1455]
[1645867711052,0.3636,2757.7,2756.4,1.1455]
[1645867711303,1.0,2757.4,2756.4,1.1455]
[1645867712008,0.6664,2757.7,2757.0,1.31372253]
[1645867712210,0.25554754,2756.7,2756.4,1.8091]
[1645867712413,1.0,2757.8,2756.5,7.0]
[1645867712610,1.0,2757.8,2756.6,0.3636]
[1645867712809,0.523,2758.1,2756.7,3.8636]
[1645867713011,0.8604776,2758.0,2756.8,8.6118]
[1645867713210,0.8604776,2758.0,2756.8,12.4118]
[1645867713411,0.8604776,2758.0,2756.8,8.9118]
[1645867713814,0.8604776,2758.0,2756.8,12.4118]
[1645867714014,0.8604776,2758.0,2756.8,6.1042]
[1645867714415,0.0045443,2757.5,2756.8,6.1042]
[1645867715245,0.0045443,2757.5,2756.9,1.14333106]
[1645867715446,0.8866,2758.1,2757.7,1.08734888]
[1645867715647,0.85968078,2758.0,2757.7,1.08734888]
[1645867716050,0.85968078,2758.0,2756.9,1.396]
[1645867716850,0.00454675,2757.6,2756.9,1.396]
[1645867717051,0.00454675,2757.6,2756.9,1.146]
[1645867717252,0.00454675,2757.6,2757.4,1.1507141]
[1645867717660,0.9071,2758.0,2756.9,1.146]
[1645867717855,1.2071,2758.0,2756.9,1.146]
[1645867718057,0.00454672,2757.6,2756.9,1.146]
[1645867718711,0.00454672,2757.6,2757.1,1.21232801]
[1645867718902,3.14425,2758.0,2757.1,1.21232801]
[1645867719103,0.00318894,2757.4,2757.1,1.21232801]
[1645867720106,0.8585704,2757.8,2757.1,1.21232801]
[1645867720311,0.00320094,2757.4,2757.1,1.21232801]
[1645867721307,0.85833889,2757.9,2757.1,1.21232801]
[1645867721508,0.00455571,2757.4,2757.1,1.21232801]
[1645867722552,0.523,2758.0,2757.1,1.21232801]
[1645867722753,0.00455571,2757.4,2757.1,1.21232801]
[1645867723761,0.3636,2757.9,2757.1,1.21232801]
[1645867723959,0.00455571,2757.4,2757.1,1.21232801]
[1645867724763,0.00455571,2757.4,2756.9,1.146]
[1645867724961,1.1866,2757.9,2756.9,1.146]
[1645867725161,0.85855495,2757.8,2756.9,1.146]
[1645867725463,0.00455571,2757.4,2756.9,1.146]
[1645867725663,0.00455571,2757.4,2756.9,1.446]
[1645867725962,0.00455571,2757.4,2756.9,1.5909]
[1645867726409,0.00455576,2757.3,2756.9,1.5909]
[1645867726809,0.00455576,2757.3,2757.0,1.24291655]
[1645867727410,0.523,2758.1,2757.0,1.24291655]
[1645867727611,0.00429204,2757.3,2757.0,4.74291655]
[1645867727810,0.00429204,2757.3,2757.0,1.24291655]
[1645867728611,0.523,2758.1,2757.0,1.24291655]
[1645867728812,0.00429204,2757.3,2757.0,1.24291655]
[1645867729812,0.90711,2758.0,2757.0,1.24291655]
[1645867730064,0.00429204,2757.3,2757.0,1.24291655]
[1645867730864,0.523,2758.0,2757.1,3.5]
[1645867731068,1.0,2758.2,2757.2,5.5085]
[1645867731276,1.0,2758.2,2757.4,0.3636]
[1645867731468,1.0,2758.2,2757.5,0.1449]
[1645867731666,1.0,2758.2,2757.7,0.3636]
[1645867731870,0.523,2759.2,2757.8,0.1449]
[1645867732068,0.86004109,2759.1,2757.9,0.3636]
[1645867732266,0.507,2759.4,2757.9,0.3636]
[1645867732267,0.86004109,2759.3,2757.9,6.6828]
[1645867732467,0.1434,2759.2,2757.9,6.6828]
[1645867732868,0.86113085,2759.1,2758.6,1.06600619]
[1645867733066,0.16661637,2758.3,2758.0,0.1449]
[1645867734111,0.16661637,2758.3,2758.1,1.25478232]
[1645867734713,0.17116737,2758.3,2758.2,0.1449]
[1645867735817,0.16661637,2758.3,2758.2,0.1449]
[1645867740670,0.16661637,2758.3,2757.9,6.1641]
[1645867740877,0.16661637,2758.3,2758.0,7.2516]
[1645867742004,0.17115999,2758.3,2758.0,7.2516]
[1645867743010,0.16661637,2758.3,2758.0,7.2516]
[1645867743209,0.53475999,2758.3,2758.0,7.2516]
[1645867743616,5.22897491,2758.2,2758.0,7.2516]
[1645867743817,3.8636,2758.1,2758.0,7.2516]
[1645867744016,5.22967056,2758.1,2758.0,7.2516]
[1645867744217,7.22967056,2758.1,2758.0,7.2516]
[1645867744418,3.72967056,2758.1,2758.0,7.2516]
[1645867745871,18.57967056,2758.1,2758.0,7.2516]
[1645867746076,18.78322863,2758.1,2758.0,7.2516]
[1645867746272,18.78322863,2758.1,2758.0,4.7988267]
[1645867746273,20.11960812,2758.1,2758.0,4.7988267]
[1645867746482,18.92662863,2758.1,2758.0,4.7988267]
[1645867747080,20.08592742,2758.1,2758.0,3.2988267]
[1645867747284,24.73871847,2758.1,2758.0,1.97627943]
[1645867747582,1.27094,2757.4,2756.4,6.1853]
[1645867747783,4.86607056,2757.3,2756.4,6.1853]
[1645867747982,0.523,2757.3,2756.5,0.70560286]
[1645867748181,1.523,2757.3,2756.5,0.70560286]
[1645867748380,0.523,2757.3,2756.5,0.70560286]
[1645867748816,0.523,2757.3,2756.4,6.1853]
[1645867748817,0.79950507,2757.2,2756.4,6.1853]
[1645867749021,1.32250507,2757.2,2756.4,6.1853]
[1645867749216,5.20692258,2757.1,2756.4,6.1853]
[1645867749417,0.00430541,2757.0,2756.4,6.1853]
[1645867750017,0.00430541,2757.0,2756.5,1.37771106]
[1645867750218,1.523,2757.3,2756.6,0.70582281]
[1645867750417,0.00430549,2756.8,2756.6,0.70582281]
[1645867750618,0.00430549,2756.8,2756.7,6.076]
[1645867750818,0.00430549,2756.8,2756.7,6.78182281]
[1645867751426,0.8866,2757.6,2756.7,6.78182281]
[1645867751619,0.00430547,2756.9,2756.7,6.78182281]
[1645867751819,0.00430547,2756.9,2756.8,0.70582281]
[1645867752659,0.523,2757.6,2756.8,0.70582281]
[1645867752862,0.00429118,2757.0,2756.8,0.70582281]
[1645867753060,0.00030279,2757.0,2756.8,0.70582281]
[1645867753263,0.00030279,2757.0,2756.8,1.00582281]
[1645867753563,0.00030279,2757.0,2756.9,0.3636]
[1645867753767,0.16661637,2758.3,2756.9,1.06946029]
[1645867753966,0.80065275,2758.2,2757.0,4.71876029]
[1645867754167,0.80065275,2758.2,2757.1,0.70586029]
[1645867754368,0.80065275,2758.2,2757.6,1.20005738]
[1645867754565,0.16661637,2758.3,2757.6,1.20005738]
[1645867754767,0.16661637,2758.3,2757.7,0.70561578]
[1645867755265,0.00319244,2758.1,2757.7,0.70561578]
[1645867755466,0.00319244,2758.1,2757.8,1.0639284]
[1645867756313,0.16661637,2758.3,2757.8,1.0639284]
[1645867756516,0.00454107,2758.1,2757.8,1.0639284]
[1645867757517,0.16661637,2758.3,2757.8,1.0639284]
[1645867757714,0.00454107,2758.1,2757.8,1.0639284]
[1645867758716,0.16661637,2758.3,2757.8,1.0639284]
[1645867758918,0.00454107,2758.1,2757.8,1.0639284]
[1645867759961,0.16661637,2758.3,2757.8,1.0639284]
[1645867760163,0.00454107,2758.1,2757.8,1.0639284]
[1645867761061,0.16661637,2758.3,2757.8,1.0639284]
[1645867761264,0.00454107,2758.1,2757.8,1.0639284]
[1645867762265,0.16661637,2758.3,2757.8,1.0639284]
[1645867762468,0.00454107,2758.1,2757.8,1.0639284]
[1645867763473,0.16661637,2758.3,2757.8,1.0639284]
[1645867763713,0.00454107,2758.1,2757.8,1.0639284]
[1645867763913,0.00454107,2758.1,2757.7,5.5603]
[1645867764711,0.16661637,2758.3,2757.7,5.5603]
[1645867764712,0.16661637,2758.3,2757.8,0.70561723]
[1645867764914,0.00454109,2758.0,2757.8,1.35903747]
[1645867765916,0.16661637,2758.3,2757.8,1.35903747]
[1645867766115,0.00454109,2758.0,2757.8,1.35903747]
[1645867766718,0.00454109,2758.0,2757.7,5.5603]
[1645867767121,0.16661637,2758.3,2757.7,5.5603]
[1645867767319,0.00454109,2758.0,2757.7,5.5603]
[1645867767769,0.00454109,2758.0,2757.8,1.23172143]
[1645867768170,0.16661637,2758.3,2757.8,1.23172143]
[1645867768368,0.16661637,2758.3,2757.9,0.70594258]
[1645867768568,0.00454109,2758.0,2757.9,0.70594258]
[1645867769376,0.16661637,2758.3,2757.9,0.70594258]
[1645867769673,0.00454107,2758.1,2757.8,1.23172143]
[1645867769873,0.00454107,2758.1,2757.9,0.70630878]
[1645867770671,0.16661637,2758.3,2757.9,0.70630878]
[1645867770875,0.00454104,2758.1,2757.9,0.70630878]
[1645867771531,4.104e-05,2758.1,2758.0,3.5]
[1645867771733,4.104e-05,2758.1,2758.0,0.70630878]
[1645867771927,0.16661637,2758.3,2758.0,0.70630878]
[1645867772522,0.16661637,2758.3,2758.0,4.20630878]
[1645867772724,0.16661637,2758.3,2758.0,0.70630878]
[1645867773930,0.16661637,2758.3,2757.9,1.2257]
[1645867774127,0.16661637,2758.3,2757.7,5.5603]
[1645867774327,0.16661637,2758.3,2757.5,1.1751]
[1645867774727,0.16980582,2758.3,2757.5,1.1751]
[1645867774960,0.80220312,2758.2,2757.6,0.7067846]
[1645867775161,0.80220312,2758.2,2757.7,1.12672065]
[1645867775360,0.80220312,2758.2,2757.5,1.1751]
[1645867775561,0.80220312,2758.2,2757.6,0.7069364]
[1645867775762,0.80674388,2758.2,2757.6,0.7069364]
[1645867775961,0.80220312,2758.1,2757.6,0.7069364]
[1645867778167,0.0045407,2758.2,2757.9,1.23188147]
[1645867778814,0.0045407,2758.2,2758.0,0.70688926]
[1645867779017,0.16661637,2758.3,2758.0,0.70688926]
[1645867779422,0.00418766,2758.2,2758.0,0.70688926]
[1645867779619,8.766e-05,2758.2,2758.0,0.70688926]
[1645867779827,0.16661637,2758.3,2758.2,0.00380274]
[1645867780220,0.53021637,2758.3,2758.2,0.00380274]
[1645867780423,1.85593629,2758.3,2758.2,0.00380274]
[1645867780618,2.15593629,2758.3,2758.2,0.00380274]
[1645867780819,1.49233629,2758.3,2758.2,0.00380274]
[1645867781025,0.96933629,2758.3,2758.2,0.00380274]
[1645867781419,0.87871635,2758.3,2758.2,0.00380274]
[1645867781818,1.76531635,2758.3,2758.2,0.00380274]
[1645867782319,2.06531635,2758.3,2758.2,0.00380274]
[1645867784367,3.06531635,2758.3,2758.2,0.00380274]
[1645867784577,2.40589643,2758.3,2758.2,0.00380274]
[1645867784769,4.21561187,2758.3,2758.2,0.00380274]
[1645867784969,3.21561187,2758.3,2758.2,0.00380274]
[1645867785173,4.40279557,2758.3,2758.2,0.00380274]
[1645867785370,9.40279557,2758.3,2758.2,0.00380274]
[1645867785570,11.24418489,2758.3,2758.2,0.00380274]
[1645867786517,6.24418489,2758.3,2758.2,0.00380274]
[1645867786719,10.07459132,2758.3,2758.2,0.00380274]
[1645867786920,11.24418489,2758.3,2758.2,0.00380274]
[1645867788118,6.24418489,2758.3,2758.2,0.00380274]
[1645867788320,5.07459132,2758.3,2758.2,0.00380274]
[1645867789321,4.93129132,2758.3,2758.2,0.00380274]
[1645867790569,3.89589557,2758.3,2758.2,0.00380274]
[1645867790768,3.70871187,2758.3,2758.2,0.00380274]
[1645867791371,2.70871187,2758.3,2758.2,0.00380274]
[1645867791969,3.07231187,2758.3,2758.2,0.00380274]
[1645867792171,2.07231187,2758.3,2758.2,0.00380274]
[1645867792369,3.07231187,2758.3,2758.2,0.00380274]
[1645867792772,4.74410762,2758.3,2758.2,0.00380274]
[1645867792973,3.74410762,2758.3,2758.2,0.00380274]
[1645867793176,4.74410762,2758.3,2758.2,0.00380274]
[1645867793814,4.07231187,2758.3,2758.2,0.00380274]
[1645867794216,20.12231187,2758.3,2758.2,0.00380274]
[1645867794415,7.3636,2758.2,2757.2,0.01811414]
[1645867794619,1.27094,2757.3,2756.9,0.25]
[1645867794816,1.27094,2757.3,2756.4,2.7386]
[1645867794817,0.3636,2757.1,2756.4,2.7386]
[1645867795019,1.33271544,2757.2,2756.4,2.7386]
[1645867795020,0.3636,2756.9,2756.4,2.7386]
[1645867795216,1.17331544,2756.8,2756.5,0.70170156]
[1645867795414,1.33271544,2756.7,2756.5,0.70170156]
[1645867795624,1.33271544,2756.7,2756.1,12.1212]
[1645867795625,0.80971544,2756.6,2756.1,11.8712]
[1645867795818,0.523,2756.5,2756.2,0.70224822]
[1645867796018,0.80971544,2756.4,2756.2,0.70224822]
[1645867796815,0.80971544,2756.4,2756.1,6.2601]
[1645867797015,0.523,2756.5,2755.8,2.8537]
[1645867797225,0.523,2756.5,2755.9,0.69995926]
[1645867797458,0.523,2756.5,2756.2,0.00423664]
[1645867797459,0.808456,2756.4,2756.2,0.00423664]
[1645867797660,1.331456,2756.4,2756.2,0.00423664]
[1645867797862,0.80845702,2756.3,2756.2,0.00423664]
[1645867798264,1.71613702,2756.3,2755.7,0.12873976]
[1645867798461,0.90768,2756.3,2756.1,0.00423671]
[1645867799469,0.90768,2756.3,2755.4,0.25]
[1645867799766,1.523,2756.4,2756.1,0.00389996]
[1645867799965,0.00031289,2755.9,2755.7,0.69983232]
[1645867800565,0.00031289,2755.9,2755.6,0.01560219]
[1645867800769,0.00031289,2755.9,2755.2,4.4203]
[1645867800966,0.00031289,2755.9,2755.4,0.69849564]
[1645867801422,0.00031289,2755.9,2755.2,4.1203]
[1645867801812,0.00031289,2755.9,2755.4,0.69834895]
[1645867802513,0.00031289,2755.9,2755.2,4.1203]
[1645867803322,0.00031289,2755.9,2755.5,0.00451117]
[1645867804320,0.00031289,2755.9,2755.2,4.1203]
[1645867804520,0.00031289,2755.9,2755.6,0.00451101]
[1645867804722,0.52331289,2755.9,2755.6,0.00451101]
[1645867804956,0.88691289,2755.9,2755.6,0.00451101]
[1645867805258,0.88691289,2755.9,2755.1,0.01804674]
[1645867805259,6.27147,2755.7,2755.1,0.01804674]
[1645867805459,5.0,2755.2,2754.9,0.25291687]
[1645867805662,4.023,2755.1,2754.1,0.25]
[1645867805863,0.3636,2754.9,2754.2,0.64067656]
[1645867806062,0.3636,2754.7,2754.1,0.64359343]
[1645867806361,3.61161,2754.6,2754.0,7.2314]
[1645867806560,3.24801,2754.6,2754.0,7.2314]
[1645867806766,1.523,2754.6,2754.1,0.64055541]
[1645867806964,1.0,2754.7,2754.1,0.64055541]
[1645867807366,1.0,2754.7,2754.5,1.04312992]
[1645867807765,0.523,2755.5,2754.5,1.04312992]
[1645867807966,0.3636,2755.4,2754.6,0.00291687]
[1645867808166,1.431,2755.3,2754.1,1.14861687]
[1645867808371,1.431,2755.3,2754.2,0.00291687]
[1645867808818,1.431,2755.3,2754.2,0.64065278]
[1645867809019,1.431,2755.3,2754.8,3.12035951]
[1645867809020,1.0,2755.2,2754.8,3.12035951]
[1645867809218,1.0,2755.2,2754.8,6.24071902]
[1645867809219,1.90808,2755.2,2754.8,6.24071902]
[1645867809422,2.8161277,2755.2,2754.8,6.24071902]
[1645867809618,3.4161277,2755.2,2754.8,6.24071902]
[1645867809819,4.9391277,2755.2,2754.8,6.24071902]
[1645867810522,0.90809,2755.1,2754.8,6.24071902]
[1645867810820,0.90809,2755.1,2754.8,6.12901725]
[1645867811022,1.43109,2755.1,2754.8,6.12901725]
[1645867811420,1.0,2754.9,2754.8,6.12901725]
[1645867811620,1.43109,2755.1,2754.8,6.12901725]
[1645867812460,1.0,2754.9,2754.8,6.12901725]
[1645867814066,1.0,2754.9,2754.8,3.12035951]
[1645867814468,1.0,2754.9,2754.8,6.12901725]
[1645867815869,0.90814289,2755.9,2754.8,6.12901725]
[1645867816069,0.90814289,2755.9,2755.6,1.41113499]
[1645867816342,2.20814289,2755.9,2754.9,14.1961]
[1645867816541,1.00031289,2755.9,2755.4,3.12035951]
[1645867816738,0.00031289,2755.9,2755.4,3.12035951]
[1645867817139,0.00031289,2755.9,2755.5,0.3636]
[1645867817547,0.00031289,2755.9,2755.6,4.99319261]
[1645867817746,0.00031289,2755.9,2755.7,9.6243]
[1645867817946,0.00031289,2755.9,2755.8,15.11494539]
[1645867818145,4.764e-05,2756.7,2756.3,0.3636]
[1645867818350,0.523,2758.0,2756.5,0.3636]
[1645867818547,1.52277485,2757.9,2756.5,3.8636]
[1645867818848,1.52277485,2757.9,2756.5,0.3636]
[1645867818849,0.6664,2757.9,2756.5,0.3636]
[1645867819044,0.6664,2757.9,2756.5,0.5085]
[1645867819045,0.523,2757.9,2756.5,0.5085]
[1645867819245,0.823,2757.9,2756.5,0.5085]
[1645867819446,0.523,2757.9,2757.7,1.40561098]
[1645867819650,0.1434,2757.8,2756.8,0.25]
[1645867819847,0.1434,2757.8,2756.6,0.3636]
[1645867820058,0.8866,2757.9,2756.5,0.1449]
[1645867820360,0.1434,2757.8,2756.5,0.1449]
[1645867820562,0.1434,2757.8,2756.6,6.0814]
[1645867820759,0.1434,2757.8,2757.2,1.20712398]
[1645867820959,0.1434,2757.8,2756.6,6.0814]
[1645867820960,0.18755663,2756.8,2756.6,6.0814]
[1645867821958,0.18755663,2756.8,2756.7,0.1451]
[1645867822160,0.18755663,2756.8,2756.7,1.44463948]
[1645867822560,0.18755663,2756.8,2756.7,1.29953948]
[1645867823823,0.18755663,2756.8,2756.7,0.12801599]
[1645867824824,0.18755663,2756.8,2756.7,3.13667373]
[1645867825625,0.18755663,2756.8,2756.7,4.57106864]
[1645867826033,1.0,2757.4,2756.8,6.6875]
[1645867826034,0.4541,2757.4,2756.8,6.6875]
[1645867826227,4.242e-05,2756.9,2756.8,6.6875]
[1645867826425,4.242e-05,2756.9,2756.8,13.9423]
[1645867826629,4.242e-05,2756.9,2756.8,14.4508]
[1645867827030,4.242e-05,2756.9,2756.8,20.56605951]
[1645867827227,1.9215375,2758.2,2756.8,20.56605951]
[1645867827489,0.83570983,2758.1,2757.8,1.38655761]
[1645867828066,1.9215375,2758.2,2757.8,1.38655761]
[1645867829873,0.00318576,2758.1,2757.1,2.002]
[1645867830075,0.00318576,2758.1,2758.0,3.00865774]
[1645867830674,1.9215375,2758.2,2758.0,3.00865774]
[1645867831076,1.52739443,2758.5,2758.1,7.0]
[1645867831077,0.00439443,2758.5,2758.1,7.0]
[1645867831325,0.4536,2758.8,2758.1,7.0]
[1645867831326,0.00439443,2758.7,2758.1,7.0]
[1645867831526,0.00439443,2758.9,2758.1,7.0]
[1645867831731,0.45799443,2759.3,2758.2,5.8943]
[1645867831931,0.80121779,2759.2,2758.9,1.03615352]
[1645867832328,0.80121779,2759.2,2759.1,3.12035951]
[1645867833326,0.80121779,2759.4,2759.1,3.12035951]
[1645867833528,7.45439443,2759.7,2759.1,3.12035951]
[1645867833727,0.80084781,2759.6,2759.1,3.12035951]
[1645867833928,0.00439443,2760.0,2759.1,3.12035951]
[1645867834129,0.00439443,2759.7,2759.2,6.1153]
[1645867834330,0.00439443,2759.7,2759.1,3.12035951]
[1645867834331,0.79946687,2759.6,2759.1,3.12035951]
[1645867834631,1.09946687,2759.6,2759.1,3.12035951]
[1645867834830,0.79946687,2759.5,2759.1,3.12035951]
[1645867835466,0.79946687,2759.5,2759.3,3.00865774]
[1645867835666,0.4536,2759.6,2759.3,3.00865774]
[1645867835869,0.00452615,2759.4,2759.3,3.00865774]
[1645867836764,0.89099443,2760.1,2759.3,3.00865774]
[1645867836965,0.00452613,2759.5,2759.3,3.00865774]
[1645867837566,0.00452613,2759.5,2759.4,3.12035951]
[1645867837866,0.02249622,2759.9,2759.4,3.12035951]
[1645867837867,0.00439443,2759.9,2759.4,3.12035951]
[1645867838066,0.80193495,2759.8,2759.4,3.12035951]
[1645867838267,0.00452608,2759.6,2759.4,3.12035951]
[1645867838910,0.00452608,2759.6,2759.5,1.21635418]
[1645867839111,0.00439443,2760.5,2759.5,1.21635418]
[1645867839313,0.0028481,2759.6,2759.5,1.21635418]
[1645867840316,0.00439443,2760.5,2759.5,1.21635418]
[1645867840514,0.80103162,2760.4,2759.4,3.12035951]
[1645867840712,0.0167932,2760.1,2759.8,3.00865774]
[1645867840913,0.0167932,2760.1,2759.8,1.37462834]
[1645867841915,0.00283653,2760.1,2759.8,1.37462834]